[Event "December 12 Late 2023"]
[Site "https://www.chess.com"]
[Date "2023.12.12"]
[Round "9"]
[White "Petukhov, Dmitry"]
[Black "Todev, Simeon"]
[Result "0-1"]
[Board "71"]
[TimeControl "180+1"]
[WhiteFideId "4142748"]
[BlackFideId "2925133"]
[WhiteElo "2505"]
[BlackElo "2355"]
[WhiteTeam "RUS"]
[BlackTeam "BUL"]
[WhiteClock "0:00:00"]
[BlackClock "0:01:15"]

1. e4 {[%clk 0:01:44]}  c5 {[%clk 0:02:55]} 2. c3 {[%clk 0:01:44]}  d5 {[%clk 0:02:50]} 3. exd5 {[%clk 0:01:44]}  Qxd5 {[%clk 0:02:44]} 4. d4 {[%clk 0:01:43]}  Nc6 {[%clk 0:02:41]} 5. Nf3 {[%clk 0:01:43]}  Bg4 {[%clk 0:02:42]} 6. Be2 {[%clk 0:01:42]}  e6 {[%clk 0:02:41]} 7. O-O {[%clk 0:01:42]}  Nf6 {[%clk 0:02:38]} 8. h3 {[%clk 0:01:42]}  Bh5 {[%clk 0:02:37]} 9. Be3 {[%clk 0:01:42]}  cxd4 {[%clk 0:02:33]} 10. cxd4 {[%clk 0:01:43]}  Bb4 {[%clk 0:02:30]} 11. a3 {[%clk 0:01:42]}  Ba5 {[%clk 0:02:29]} 12. b4 {[%clk 0:01:18]}  Bc7 {[%clk 0:02:27]} 13. Nc3 {[%clk 0:01:12]}  Qd7 {[%clk 0:02:21]} 14. Rc1 {[%clk 0:01:04]}  O-O {[%clk 0:02:20]} 15. Ne5 {[%clk 0:00:54]}  Nxe5 {[%clk 0:02:00]} 16. dxe5 {[%clk 0:00:55]}  Qxd1 {[%clk 0:02:01]} 17. Bxd1 {[%clk 0:00:51]}  Bxe5 {[%clk 0:01:58]} 18. g4 {[%clk 0:00:37]}  Bg6 {[%clk 0:01:58]} 19. Bf3 {[%clk 0:00:37]}  Rac8 {[%clk 0:01:51]} 20. Nb5 {[%clk 0:00:20]}  Bd3 {[%clk 0:01:48]} 21. Rxc8 {[%clk 0:00:09]}  Rxc8 {[%clk 0:01:46]} 22. Nxa7 {[%clk 0:00:10]}  Rc3 {[%clk 0:01:46]} 23. Rd1 {[%clk 0:00:08]}  Rxa3 {[%clk 0:01:42]} 24. Bxb7 {[%clk 0:00:08]}  h6 {[%clk 0:01:33]} 25. Nc6 {[%clk 0:00:08]}  Bc7 {[%clk 0:01:27]} 26. Bc1 {[%clk 0:00:02]}  Rb3 {[%clk 0:01:16]} 27. Na5 {[%clk 0:00:00]}  Rxb4 {[%clk 0:01:15]} 0-1

[Event "December 12 Late 2023"]
[Site "https://www.chess.com"]
[Date "2023.12.12"]
[Round "9"]
[White "Wartiovaara, Oliver"]
[Black "Marcziter, Dmitrii"]
[Result "0-1"]
[Board "73"]
[TimeControl "180+1"]
[WhiteFideId "513024"]
[BlackFideId "13900765"]
[WhiteElo "2487"]
[BlackElo "2335"]
[WhiteTeam "FIN"]
[BlackTeam "GER"]
[WhiteClock "0:02:44"]
[BlackClock "0:02:15"]

1. d4 {[%clk 0:03:00]}  Nf6 {[%clk 0:02:58]} 2. Nf3 {[%clk 0:03:01]}  g6 {[%clk 0:02:57]} 3. Nbd2 {[%clk 0:03:00]}  d5 {[%clk 0:02:57]} 4. b4 {[%clk 0:03:00]}  c6 {[%clk 0:02:56]} 5. e3 {[%clk 0:03:00]}  Bg7 {[%clk 0:02:56]} 6. Rb1 {[%clk 0:02:59]}  a6 {[%clk 0:02:55]} 7. Be2 {[%clk 0:02:58]}  O-O {[%clk 0:02:54]} 8. O-O {[%clk 0:02:58]}  Bf5 {[%clk 0:02:51]} 9. a4 {[%clk 0:02:55]}  Nbd7 {[%clk 0:02:49]} 10. Ba3 {[%clk 0:02:52]}  Re8 {[%clk 0:02:48]} 11. b5 {[%clk 0:02:52]}  axb5 {[%clk 0:02:48]} 12. Bb4 {[%clk 0:02:48]}  bxa4 {[%clk 0:02:43]} 13. Ra1 {[%clk 0:02:48]}  b5 {[%clk 0:02:42]} 14. c3 {[%clk 0:02:47]}  e5 {[%clk 0:02:38]} 15. Nh4 {[%clk 0:02:47]}  Be6 {[%clk 0:02:31]} 16. dxe5 {[%clk 0:02:47]}  Nxe5 {[%clk 0:02:30]} 17. f4 {[%clk 0:02:48]}  Neg4 {[%clk 0:02:20]} 18. Bc5 {[%clk 0:02:47]}  Nd7 {[%clk 0:02:17]} 19. Bd4 {[%clk 0:02:44]}  Qxh4 {[%clk 0:02:15]} 0-1

[Event "December 12 Late 2023"]
[Site "https://www.chess.com"]
[Date "2023.12.12"]
[Round "9"]
[White "Rose, Felix"]
[Black "Herman, Matthew"]
[Result "0-1"]
[Board "74"]
[TimeControl "180+1"]
[WhiteFideId "5105722"]
[BlackFideId "2028964"]
[WhiteElo "2332"]
[BlackElo "2487"]
[WhiteTeam "MEX"]
[BlackTeam "USA"]
[WhiteClock "0:00:03"]
[BlackClock "0:00:08"]

1. Nf3 {[%clk 0:02:59]}  Nf6 {[%clk 0:03:00]} 2. e3 {[%clk 0:02:58]}  g6 {[%clk 0:03:00]} 3. c4 {[%clk 0:02:58]}  Bg7 {[%clk 0:03:01]} 4. b4 {[%clk 0:02:58]}  O-O {[%clk 0:03:02]} 5. Bb2 {[%clk 0:02:58]}  d6 {[%clk 0:02:54]} 6. Be2 {[%clk 0:02:57]}  e5 {[%clk 0:02:54]} 7. d3 {[%clk 0:02:54]}  Re8 {[%clk 0:02:51]} 8. Nbd2 {[%clk 0:02:51]}  Nbd7 {[%clk 0:02:42]} 9. O-O {[%clk 0:02:51]}  Nf8 {[%clk 0:02:33]} 10. a4 {[%clk 0:02:51]}  h5 {[%clk 0:02:26]} 11. a5 {[%clk 0:02:49]}  N8h7 {[%clk 0:02:26]} 12. Qb3 {[%clk 0:02:39]}  Ng4 {[%clk 0:02:22]} 13. b5 {[%clk 0:02:26]}  Kh8 {[%clk 0:02:16]} 14. h3 {[%clk 0:02:22]}  Nh6 {[%clk 0:02:16]} 15. Rfc1 {[%clk 0:02:19]}  g5 {[%clk 0:02:08]} 16. c5 {[%clk 0:02:14]}  d5 {[%clk 0:02:08]} 17. d4 {[%clk 0:01:59]}  e4 {[%clk 0:01:54]} 18. Ne5 {[%clk 0:01:59]}  g4 {[%clk 0:01:41]} 19. hxg4 {[%clk 0:01:55]}  hxg4 {[%clk 0:01:37]} 20. g3 {[%clk 0:01:47]}  Ng5 {[%clk 0:01:29]} 21. Kg2 {[%clk 0:01:38]}  Nf3 {[%clk 0:00:42]} 22. Qc2 {[%clk 0:00:38]}  Bxe5 {[%clk 0:00:30]} 23. dxe5 {[%clk 0:00:32]}  Be6 {[%clk 0:00:31]} 24. Rh1 {[%clk 0:00:31]}  Qg5 {[%clk 0:00:24]} 25. c6 {[%clk 0:00:24]}  b6 {[%clk 0:00:23]} 26. axb6 {[%clk 0:00:21]}  axb6 {[%clk 0:00:24]} 27. Rxa8 {[%clk 0:00:16]}  Rxa8 {[%clk 0:00:25]} 28. Nb3 {[%clk 0:00:16]}  Kg7 {[%clk 0:00:19]} 29. Nd4 {[%clk 0:00:15]}  Nf5 {[%clk 0:00:17]} 30. Nxf5+ {[%clk 0:00:14]}  Qxf5 {[%clk 0:00:16]} 31. Qc3 {[%clk 0:00:06]}  Rh8 {[%clk 0:00:14]} 32. Rxh8 {[%clk 0:00:06]}  Kxh8 {[%clk 0:00:15]} 33. Bxf3 {[%clk 0:00:05]}  gxf3+ {[%clk 0:00:14]} 34. Kf1 {[%clk 0:00:05]}  Qh3+ {[%clk 0:00:15]} 35. Ke1 {[%clk 0:00:06]}  Qh1+ {[%clk 0:00:15]} 36. Kd2 {[%clk 0:00:06]}  Qf1 {[%clk 0:00:15]} 37. Kc2 {[%clk 0:00:05]}  Qxf2+ {[%clk 0:00:15]} 38. Qd2 {[%clk 0:00:06]}  Qxg3 {[%clk 0:00:11]} 39. Kc3 {[%clk 0:00:06]}  f2 {[%clk 0:00:09]} 40. Qe2 {[%clk 0:00:06]}  Qf3 {[%clk 0:00:06]} 41. Qf1 {[%clk 0:00:05]}  Bh3 {[%clk 0:00:06]} 42. Qxf2 {[%clk 0:00:02]}  Qxf2 {[%clk 0:00:06]} 43. Kd4 {[%clk 0:00:02]}  Qxb2+ {[%clk 0:00:06]} 44. Kxd5 {[%clk 0:00:02]}  Qxb5+ {[%clk 0:00:06]} 45. Kxe4 {[%clk 0:00:02]}  Qxc6+ {[%clk 0:00:06]} 46. Kf4 {[%clk 0:00:02]}  Qe6 {[%clk 0:00:05]} 47. e4 {[%clk 0:00:03]}  b5 {[%clk 0:00:06]} 48. Kg5 {[%clk 0:00:03]}  b4 {[%clk 0:00:07]} 49. Kh4 {[%clk 0:00:02]}  b3 {[%clk 0:00:08]} 50. Kg5 {[%clk 0:00:03]}  b2 {[%clk 0:00:08]} 51. Kh4 {[%clk 0:00:03]}  Qg4# {[%clk 0:00:08]} 0-1

[Event "December 12 Late 2023"]
[Site "https://www.chess.com"]
[Date "2023.12.12"]
[Round "9"]
[White "Shton, Roman"]
[Black "Shapiro, Daniel"]
[Result "1-0"]
[Board "75"]
[TimeControl "180+1"]
[WhiteFideId "14137461"]
[BlackFideId "2001780"]
[WhiteElo "2485"]
[BlackElo "2314"]
[WhiteTeam "UKR"]
[BlackTeam "USA"]
[WhiteClock "0:00:21"]
[BlackClock "0:00:00"]

1. d4 {[%clk 0:03:00]}  Nf6 {[%clk 0:02:59]} 2. Nf3 {[%clk 0:03:00]}  b6 {[%clk 0:02:58]} 3. g3 {[%clk 0:02:59]}  e6 {[%clk 0:02:55]} 4. Bg2 {[%clk 0:03:00]}  Bb7 {[%clk 0:02:55]} 5. O-O {[%clk 0:03:01]}  Be7 {[%clk 0:02:53]} 6. c4 {[%clk 0:03:01]}  d5 {[%clk 0:02:49]} 7. Nc3 {[%clk 0:03:01]}  c6 {[%clk 0:02:48]} 8. Qd3 {[%clk 0:03:00]}  O-O {[%clk 0:02:42]} 9. e4 {[%clk 0:03:00]}  dxc4 {[%clk 0:02:35]} 10. Qxc4 {[%clk 0:02:59]}  Ba6 {[%clk 0:02:34]} 11. Qa4 {[%clk 0:02:56]}  Bxf1 {[%clk 0:02:33]} 12. Bxf1 {[%clk 0:02:55]}  b5 {[%clk 0:02:32]} 13. Qc2 {[%clk 0:02:54]}  b4 {[%clk 0:02:05]} 14. Na4 {[%clk 0:02:48]}  Qa5 {[%clk 0:01:46]} 15. b3 {[%clk 0:02:42]}  Rc8 {[%clk 0:01:23]} 16. Ne5 {[%clk 0:02:29]}  c5 {[%clk 0:01:13]} 17. Be3 {[%clk 0:02:20]}  Nc6 {[%clk 0:01:00]} 18. Nc4 {[%clk 0:02:17]}  Qd8 {[%clk 0:00:58]} 19. dxc5 {[%clk 0:02:11]}  Ng4 {[%clk 0:00:51]} 20. Rd1 {[%clk 0:01:59]}  Qf8 {[%clk 0:00:51]} 21. h3 {[%clk 0:01:42]}  Nxe3 {[%clk 0:00:50]} 22. Nxe3 {[%clk 0:01:43]}  Ne5 {[%clk 0:00:48]} 23. f4 {[%clk 0:01:33]}  Bxc5 {[%clk 0:00:43]} 24. Qe2 {[%clk 0:01:24]}  Nc6 {[%clk 0:00:37]} 25. Kh2 {[%clk 0:01:17]}  Nd4 {[%clk 0:00:29]} 26. Qa6 {[%clk 0:01:12]}  Rd8 {[%clk 0:00:19]} 27. Bg2 {[%clk 0:00:44]}  Nf3+ {[%clk 0:00:19]} 28. Bxf3 {[%clk 0:00:42]}  Bxe3 {[%clk 0:00:20]} 29. Re1 {[%clk 0:00:22]}  Rd2+ {[%clk 0:00:17]} 30. Re2 {[%clk 0:00:22]}  Rxe2+ {[%clk 0:00:16]} 31. Qxe2 {[%clk 0:00:23]}  Bc5 {[%clk 0:00:13]} 32. e5 {[%clk 0:00:24]}  Be7 {[%clk 0:00:12]} 33. Bxa8 {[%clk 0:00:23]}  Qxa8 {[%clk 0:00:12]} 34. Qg2 {[%clk 0:00:24]}  Qxg2+ {[%clk 0:00:10]} 35. Kxg2 {[%clk 0:00:25]}  Kf8 {[%clk 0:00:11]} 36. Kf3 {[%clk 0:00:26]}  Ke8 {[%clk 0:00:11]} 37. Ke4 {[%clk 0:00:26]}  Kd7 {[%clk 0:00:12]} 38. Kd4 {[%clk 0:00:27]}  Kc6 {[%clk 0:00:12]} 39. Kc4 {[%clk 0:00:27]}  a5 {[%clk 0:00:12]} 40. Nb2 {[%clk 0:00:27]}  Bc5 {[%clk 0:00:11]} 41. Nd3 {[%clk 0:00:28]}  Be3 {[%clk 0:00:10]} 42. g4 {[%clk 0:00:24]}  g5 {[%clk 0:00:07]} 43. f5 {[%clk 0:00:21]}  exf5 {[%clk 0:00:07]} 44. gxf5 {[%clk 0:00:22]}  h5 {[%clk 0:00:07]} 45. f6 {[%clk 0:00:19]}  g4 {[%clk 0:00:06]} 46. e6 {[%clk 0:00:18]}  fxe6 {[%clk 0:00:04]} 47. f7 {[%clk 0:00:18]}  Bh6 {[%clk 0:00:04]} 48. hxg4 {[%clk 0:00:19]}  hxg4 {[%clk 0:00:04]} 49. Ne5+ {[%clk 0:00:19]}  Kd6 {[%clk 0:00:02]} 50. Nxg4 {[%clk 0:00:20]}  Bf8 {[%clk 0:00:01]} 51. Kd4 {[%clk 0:00:20]}  Ke7 {[%clk 0:00:01]} 52. Kc5 {[%clk 0:00:18]}  Kxf7+ {[%clk 0:00:01]} 53. Kb5 {[%clk 0:00:19]}  Bg7 {[%clk 0:00:01]} 54. Kxa5 {[%clk 0:00:20]}  e5 {[%clk 0:00:01]} 55. Kxb4 {[%clk 0:00:20]}  e4 {[%clk 0:00:02]} 56. Kc4 {[%clk 0:00:20]}  Ke6 {[%clk 0:00:02]} 57. a4 {[%clk 0:00:20]}  Kf5 {[%clk 0:00:03]} 58. Ne3+ {[%clk 0:00:20]}  Kf4 {[%clk 0:00:03]} 59. Nd5+ {[%clk 0:00:20]}  Kf3 {[%clk 0:00:00]} 60. a5 {[%clk 0:00:21]} 1-0

[Event "December 12 Late 2023"]
[Site "https://www.chess.com"]
[Date "2023.12.12"]
[Round "9"]
[White "Nilsson, Joakim"]
[Black "Osmonbekov, Talaibek"]
[Result "1-0"]
[Board "77"]
[TimeControl "180+1"]
[WhiteFideId "1723383"]
[BlackFideId "2017253"]
[WhiteElo "2430"]
[BlackElo "2288"]
[WhiteTeam "SWE"]
[BlackTeam "USA"]
[WhiteClock "0:01:35"]
[BlackClock "0:00:00"]

1. d4 {[%clk 0:03:00]}  e6 {[%clk 0:02:59]} 2. Nf3 {[%clk 0:02:59]}  f5 {[%clk 0:02:59]} 3. c4 {[%clk 0:02:49]}  Nf6 {[%clk 0:03:00]} 4. Nc3 {[%clk 0:02:49]}  Bb4 {[%clk 0:03:00]} 5. g3 {[%clk 0:02:49]}  O-O {[%clk 0:02:59]} 6. Bg2 {[%clk 0:02:50]}  d6 {[%clk 0:02:59]} 7. O-O {[%clk 0:02:49]}  Bxc3 {[%clk 0:02:59]} 8. bxc3 {[%clk 0:02:49]}  Nc6 {[%clk 0:02:57]} 9. Nd2 {[%clk 0:02:48]}  e5 {[%clk 0:02:55]} 10. e3 {[%clk 0:02:47]}  Kh8 {[%clk 0:02:49]} 11. a4 {[%clk 0:02:46]}  Bd7 {[%clk 0:02:27]} 12. Rb1 {[%clk 0:02:45]}  Rb8 {[%clk 0:02:26]} 13. c5 {[%clk 0:02:33]}  d5 {[%clk 0:02:03]} 14. f4 {[%clk 0:02:29]}  e4 {[%clk 0:02:02]} 15. h3 {[%clk 0:02:27]}  Qe8 {[%clk 0:02:00]} 16. Kf2 {[%clk 0:02:25]}  Na5 {[%clk 0:01:50]} 17. Ra1 {[%clk 0:02:25]}  a6 {[%clk 0:01:39]} 18. Rh1 {[%clk 0:02:21]}  Qg6 {[%clk 0:01:22]} 19. Bf1 {[%clk 0:02:20]}  Nc6 {[%clk 0:01:12]} 20. Be2 {[%clk 0:02:19]}  Ne7 {[%clk 0:01:10]} 21. Ba3 {[%clk 0:02:18]}  Bc6 {[%clk 0:01:07]} 22. Nb3 {[%clk 0:02:15]}  Qe8 {[%clk 0:01:05]} 23. Na5 {[%clk 0:02:11]}  Bxa4 {[%clk 0:01:04]} 24. Qd2 {[%clk 0:02:01]}  Nc6 {[%clk 0:01:00]} 25. Bb4 {[%clk 0:01:55]}  Nxa5 {[%clk 0:00:43]} 26. Bxa5 {[%clk 0:01:54]}  Rc8 {[%clk 0:00:34]} 27. Rhb1 {[%clk 0:01:51]}  Bc6 {[%clk 0:00:33]} 28. Rh1 {[%clk 0:01:49]}  Bb5 {[%clk 0:00:24]} 29. g4 {[%clk 0:01:47]}  Bxe2 {[%clk 0:00:22]} 30. Qxe2 {[%clk 0:01:47]}  fxg4 {[%clk 0:00:16]} 31. hxg4 {[%clk 0:01:47]}  Qb5 {[%clk 0:00:12]} 32. Qxb5 {[%clk 0:01:47]}  axb5 {[%clk 0:00:12]} 33. g5 {[%clk 0:01:47]}  Ng8 {[%clk 0:00:09]} 34. Rhb1 {[%clk 0:01:47]}  c6 {[%clk 0:00:09]} 35. Bb6 {[%clk 0:01:45]}  Ra8 {[%clk 0:00:09]} 36. Rh1 {[%clk 0:01:41]}  Ne7 {[%clk 0:00:08]} 37. Ke2 {[%clk 0:01:41]}  Nf5 {[%clk 0:00:07]} 38. Bc7 {[%clk 0:01:40]}  Ng3+ {[%clk 0:00:07]} 39. Kf2 {[%clk 0:01:39]}  Nxh1+ {[%clk 0:00:08]} 40. Rxh1 {[%clk 0:01:39]}  Ra2+ {[%clk 0:00:09]} 41. Kg3 {[%clk 0:01:39]}  Rc8 {[%clk 0:00:08]} 42. Be5 {[%clk 0:01:39]}  Re2 {[%clk 0:00:06]} 43. g6 {[%clk 0:01:38]}  h6 {[%clk 0:00:05]} 44. Rxh6+ {[%clk 0:01:37]}  Kg8 {[%clk 0:00:04]} 45. Rh7 {[%clk 0:01:37]}  Rxe3+ {[%clk 0:00:04]} 46. Kg4 {[%clk 0:01:37]}  Rxc3 {[%clk 0:00:03]} 47. Rxg7+ {[%clk 0:01:37]}  Kf8 {[%clk 0:00:03]} 48. Rh7 {[%clk 0:01:37]}  Re8 {[%clk 0:00:00]} 49. Bf6 {[%clk 0:01:35]} 1-0

[Event "December 12 Late 2023"]
[Site "https://www.chess.com"]
[Date "2023.12.12"]
[Round "9"]
[White "Khokhlova, Daria"]
[Black "Estrada Nieto, Julian"]
[Result "0-1"]
[Board "80"]
[TimeControl "180+1"]
[WhiteFideId "24182729"]
[BlackFideId "5101018"]
[WhiteElo "2304"]
[BlackElo "2515"]
[WhiteTeam "FID"]
[BlackTeam "ESP"]
[WhiteClock "0:00:00"]
[BlackClock "0:00:32"]

1. d4 {[%clk 0:03:00]}  Nf6 {[%clk 0:02:58]} 2. c4 {[%clk 0:03:00]}  e6 {[%clk 0:02:58]} 3. g3 {[%clk 0:03:00]}  Bb4+ {[%clk 0:02:54]} 4. Bd2 {[%clk 0:03:01]}  Bxd2+ {[%clk 0:02:54]} 5. Qxd2 {[%clk 0:03:00]}  d5 {[%clk 0:02:51]} 6. Bg2 {[%clk 0:02:58]}  O-O {[%clk 0:02:51]} 7. Qc2 {[%clk 0:02:57]}  b6 {[%clk 0:02:48]} 8. Nf3 {[%clk 0:02:55]}  Ba6 {[%clk 0:02:38]} 9. Nbd2 {[%clk 0:02:46]}  Nbd7 {[%clk 0:02:35]} 10. O-O {[%clk 0:02:45]}  c5 {[%clk 0:02:30]} 11. dxc5 {[%clk 0:02:18]}  Nxc5 {[%clk 0:02:25]} 12. Ne5 {[%clk 0:02:08]}  Rc8 {[%clk 0:02:19]} 13. Rad1 {[%clk 0:02:02]}  Qc7 {[%clk 0:02:15]} 14. Ndf3 {[%clk 0:01:55]}  Ncd7 {[%clk 0:02:03]} 15. Nxd7 {[%clk 0:01:48]}  Nxd7 {[%clk 0:02:03]} 16. Ng5 {[%clk 0:01:30]}  Nf6 {[%clk 0:01:49]} 17. Rd4 {[%clk 0:01:18]}  h6 {[%clk 0:01:47]} 18. Nf3 {[%clk 0:01:14]}  Bxc4 {[%clk 0:01:39]} 19. b3 {[%clk 0:01:07]}  Ba6 {[%clk 0:01:36]} 20. Qb2 {[%clk 0:00:50]}  Qc3 {[%clk 0:01:32]} 21. Qxc3 {[%clk 0:00:41]}  Rxc3 {[%clk 0:01:31]} 22. Re1 {[%clk 0:00:42]}  Rc2 {[%clk 0:01:28]} 23. Ra4 {[%clk 0:00:38]}  Bb5 {[%clk 0:01:12]} 24. Rxa7 {[%clk 0:00:38]}  Rxe2 {[%clk 0:01:11]} 25. Rxe2 {[%clk 0:00:36]}  Bxe2 {[%clk 0:01:11]} 26. Rb7 {[%clk 0:00:37]}  Rc8 {[%clk 0:01:06]} 27. h3 {[%clk 0:00:35]}  Rc1+ {[%clk 0:01:00]} 28. Kh2 {[%clk 0:00:35]}  Bxf3 {[%clk 0:01:00]} 29. Bxf3 {[%clk 0:00:35]}  Rc2 {[%clk 0:01:01]} 30. Kg2 {[%clk 0:00:35]}  Rxa2 {[%clk 0:00:59]} 31. Rxb6 {[%clk 0:00:35]}  Rb2 {[%clk 0:00:58]} 32. b4 {[%clk 0:00:34]}  g6 {[%clk 0:00:55]} 33. b5 {[%clk 0:00:34]}  Kg7 {[%clk 0:00:55]} 34. Rb7 {[%clk 0:00:32]}  e5 {[%clk 0:00:53]} 35. b6 {[%clk 0:00:24]}  e4 {[%clk 0:00:53]} 36. Bd1 {[%clk 0:00:23]}  e3 {[%clk 0:00:52]} 37. Ba4 {[%clk 0:00:19]}  d4 {[%clk 0:00:42]} 38. Bc6 {[%clk 0:00:18]}  e2 {[%clk 0:00:37]} 39. Re7 {[%clk 0:00:11]}  Rxb6 {[%clk 0:00:37]} 40. Ba4 {[%clk 0:00:10]}  d3 {[%clk 0:00:37]} 41. f4 {[%clk 0:00:08]}  Nd5 {[%clk 0:00:34]} 42. Re5 {[%clk 0:00:05]}  Nc3 {[%clk 0:00:33]} 43. Be8 {[%clk 0:00:00]}  d2 {[%clk 0:00:32]} 0-1

[Event "December 12 Late 2023"]
[Site "https://www.chess.com"]
[Date "2023.12.12"]
[Round "9"]
[White "Buchenau, Frank"]
[Black "Biliy, Vadim"]
[Result "1-0"]
[Board "81"]
[TimeControl "180+1"]
[WhiteFideId "4604350"]
[BlackFideId "14114127"]
[WhiteElo "2416"]
[BlackElo "2284"]
[WhiteTeam "GER"]
[BlackTeam "UKR"]
[WhiteClock "0:00:42"]
[BlackClock "0:00:06"]

1. e4 {[%clk 0:03:00]}  d6 {[%clk 0:02:55]} 2. d4 {[%clk 0:03:00]}  Nf6 {[%clk 0:02:54]} 3. Nc3 {[%clk 0:03:00]}  g6 {[%clk 0:02:54]} 4. Nf3 {[%clk 0:02:59]}  Bg7 {[%clk 0:02:53]} 5. Be2 {[%clk 0:02:59]}  O-O {[%clk 0:02:53]} 6. O-O {[%clk 0:02:59]}  Nc6 {[%clk 0:02:53]} 7. d5 {[%clk 0:02:58]}  Nb8 {[%clk 0:02:53]} 8. Bg5 {[%clk 0:02:56]}  c6 {[%clk 0:02:53]} 9. Qd2 {[%clk 0:02:55]}  a5 {[%clk 0:02:51]} 10. a4 {[%clk 0:02:49]}  Na6 {[%clk 0:02:50]} 11. Rfe1 {[%clk 0:02:47]}  Nb4 {[%clk 0:02:47]} 12. Rac1 {[%clk 0:02:24]}  Bd7 {[%clk 0:02:37]} 13. h3 {[%clk 0:02:21]}  Rc8 {[%clk 0:02:36]} 14. Bf1 {[%clk 0:02:18]}  cxd5 {[%clk 0:02:21]} 15. exd5 {[%clk 0:02:17]}  Rc5 {[%clk 0:02:16]} 16. Be3 {[%clk 0:02:13]}  Rc8 {[%clk 0:02:00]} 17. Bh6 {[%clk 0:02:00]}  Rc5 {[%clk 0:01:54]} 18. Be3 {[%clk 0:01:53]}  Rc8 {[%clk 0:01:52]} 19. Bd4 {[%clk 0:01:49]}  h5 {[%clk 0:01:35]} 20. b3 {[%clk 0:01:36]}  Bf5 {[%clk 0:01:33]} 21. Bc4 {[%clk 0:01:31]}  Kh8 {[%clk 0:01:11]} 22. Nh4 {[%clk 0:01:30]}  Bd7 {[%clk 0:01:07]} 23. Re2 {[%clk 0:01:18]}  Kh7 {[%clk 0:01:06]} 24. Nf3 {[%clk 0:01:16]}  Bh6 {[%clk 0:01:04]} 25. Ng5+ {[%clk 0:01:16]}  Kg8 {[%clk 0:01:03]} 26. Rce1 {[%clk 0:01:13]}  Nh7 {[%clk 0:00:56]} 27. f4 {[%clk 0:01:06]}  Re8 {[%clk 0:00:48]} 28. Nce4 {[%clk 0:00:56]}  Bf5 {[%clk 0:00:40]} 29. c3 {[%clk 0:00:50]}  Na6 {[%clk 0:00:36]} 30. Qe3 {[%clk 0:00:48]}  Nxg5 {[%clk 0:00:31]} 31. fxg5 {[%clk 0:00:47]}  Bg7 {[%clk 0:00:31]} 32. Bb6 {[%clk 0:00:42]}  Qd7 {[%clk 0:00:06]} 33. Bb5 {[%clk 0:00:42]} 1-0

[Event "December 12 Late 2023"]
[Site "https://www.chess.com"]
[Date "2023.12.12"]
[Round "9"]
[White "youngdinousaur"]
[Black "Munoz Sanchez, Miguel"]
[Result "1/2-1/2"]
[Board "85"]
[TimeControl "180+1"]
[BlackFideId "3600734"]
[WhiteElo "2256"]
[BlackElo "2336"]
[BlackTeam "ECU"]
[WhiteClock "0:00:09"]
[BlackClock "0:00:03"]

1. d4 {[%clk 0:02:56]}  Nf6 {[%clk 0:02:58]} 2. Nf3 {[%clk 0:02:57]}  g6 {[%clk 0:02:56]} 3. Nc3 {[%clk 0:02:56]}  d5 {[%clk 0:02:56]} 4. Bf4 {[%clk 0:02:56]}  Bg7 {[%clk 0:02:55]} 5. e3 {[%clk 0:02:56]}  O-O {[%clk 0:02:55]} 6. Be2 {[%clk 0:02:56]}  c5 {[%clk 0:02:55]} 7. Ne5 {[%clk 0:02:56]}  Nc6 {[%clk 0:02:53]} 8. Qd2 {[%clk 0:02:56]}  Nd7 {[%clk 0:02:52]} 9. Nxd5 {[%clk 0:02:52]}  Ndxe5 {[%clk 0:02:47]} 10. dxe5 {[%clk 0:02:53]}  Nxe5 {[%clk 0:02:47]} 11. O-O-O {[%clk 0:02:40]}  Be6 {[%clk 0:02:37]} 12. h4 {[%clk 0:02:36]}  Rc8 {[%clk 0:01:46]} 13. h5 {[%clk 0:02:35]}  Qe8 {[%clk 0:01:31]} 14. hxg6 {[%clk 0:02:30]}  fxg6 {[%clk 0:01:30]} 15. c3 {[%clk 0:01:59]}  c4 {[%clk 0:01:28]} 16. Rh2 {[%clk 0:01:20]}  Rd8 {[%clk 0:01:19]} 17. e4 {[%clk 0:01:05]}  Bxd5 {[%clk 0:01:18]} 18. exd5 {[%clk 0:01:05]}  Nd3+ {[%clk 0:01:11]} 19. Bxd3 {[%clk 0:01:04]}  cxd3 {[%clk 0:01:11]} 20. Bh6 {[%clk 0:01:02]}  Qf7 {[%clk 0:01:09]} 21. Bxg7 {[%clk 0:01:02]}  Qxg7 {[%clk 0:01:06]} 22. Qe3 {[%clk 0:00:47]}  Rxd5 {[%clk 0:01:04]} 23. f3 {[%clk 0:00:36]}  Qe5 {[%clk 0:00:57]} 24. Qxe5 {[%clk 0:00:26]}  Rxe5 {[%clk 0:00:58]} 25. Rxd3 {[%clk 0:00:26]}  Re2 {[%clk 0:00:52]} 26. Rd2 {[%clk 0:00:26]}  Re1+ {[%clk 0:00:50]} 27. Kc2 {[%clk 0:00:26]}  Rf6 {[%clk 0:00:41]} 28. Rh4 {[%clk 0:00:25]}  Rfe6 {[%clk 0:00:39]} 29. Rhd4 {[%clk 0:00:24]}  Kf7 {[%clk 0:00:37]} 30. Rd7 {[%clk 0:00:24]}  Rb6 {[%clk 0:00:31]} 31. a3 {[%clk 0:00:25]}  h5 {[%clk 0:00:28]} 32. Rc7 {[%clk 0:00:24]}  Ree6 {[%clk 0:00:25]} 33. Rdd7 {[%clk 0:00:20]}  Re2+ {[%clk 0:00:25]} 34. Kd3 {[%clk 0:00:18]}  Rbxb2 {[%clk 0:00:25]} 35. Rxb7 {[%clk 0:00:17]}  Rxb7 {[%clk 0:00:23]} 36. Rxb7 {[%clk 0:00:17]}  Rxg2 {[%clk 0:00:24]} 37. Rxa7 {[%clk 0:00:18]}  Ra2 {[%clk 0:00:23]} 38. Ke3 {[%clk 0:00:13]}  h4 {[%clk 0:00:22]} 39. Ra4 {[%clk 0:00:11]}  h3 {[%clk 0:00:21]} 40. Rh4 {[%clk 0:00:09]}  h2 {[%clk 0:00:19]} 41. a4 {[%clk 0:00:09]}  g5 {[%clk 0:00:19]} 42. Rh3 {[%clk 0:00:09]}  Kg6 {[%clk 0:00:16]} 43. Kd3 {[%clk 0:00:09]}  Kf5 {[%clk 0:00:13]} 44. Ke3 {[%clk 0:00:09]}  e5 {[%clk 0:00:10]} 45. Rh8 {[%clk 0:00:09]}  g4 {[%clk 0:00:05]} 46. fxg4+ {[%clk 0:00:10]}  Kxg4 {[%clk 0:00:05]} 47. c4 {[%clk 0:00:06]}  Kg3 {[%clk 0:00:04]} 48. c5 {[%clk 0:00:04]}  Kg2 {[%clk 0:00:04]} 49. Rg8+ {[%clk 0:00:05]}  Kh3 {[%clk 0:00:04]} 50. Rh8+ {[%clk 0:00:05]}  Kg2 {[%clk 0:00:05]} 51. Rg8+ {[%clk 0:00:06]}  Kf1 {[%clk 0:00:05]} 52. Rh8 {[%clk 0:00:06]}  Kg1 {[%clk 0:00:05]} 53. Rg8+ {[%clk 0:00:06]}  Rg2 {[%clk 0:00:06]} 54. Rh8 {[%clk 0:00:05]}  h1=Q {[%clk 0:00:06]} 55. Rxh1+ {[%clk 0:00:05]}  Kxh1 {[%clk 0:00:06]} 56. Ke4 {[%clk 0:00:06]}  Ra2 {[%clk 0:00:04]} 57. Kxe5 {[%clk 0:00:06]}  Rxa4 {[%clk 0:00:02]} 58. Kd6 {[%clk 0:00:06]}  Rc4 {[%clk 0:00:03]} 59. c6 {[%clk 0:00:07]}  Kg2 {[%clk 0:00:03]} 60. c7 {[%clk 0:00:07]}  Kf3 {[%clk 0:00:03]} 61. Kd7 {[%clk 0:00:08]}  Rxc7+ {[%clk 0:00:03]} 62. Kxc7 {[%clk 0:00:09]} 1/2-1/2